Cogmind - Beta 15 *** ADVENTURER MODE // 2025.06.16 @ 22:22:23 Player: NED1124 Result: Destroyed by exploding Fusion Modulator Performance ------------- Evolutions (5) 2500 Regions Visited (11) 2200 Robots Destroyed (23) 115 Value Destroyed (926) 926 Prototype IDs (2) 40 Alien Tech Used (0) 0 Bonus (337) 337 TOTAL SCORE: 6118 Bonus ------- Pacifist 200 Follower Combat Kills 221 Friendly Fire -84 Cogmind --------- Core Integrity 0/1000 Matter 198/300 Energy 85/100 System Corruption 14% Temperature Cool (75) Movement Core (50) Location -5/Factory Parts ------- > --- POWER (2) -------- (None) > --- PROPULSION (5) --- (None) > --- UTILITY (7) ------ (None) > --- WEAPON (3) ------- (None) > --- INVENTORY (5) ---- Weight Redist. System Triangulator Advanced ECM Suite Point Defense System Long-range Tractor Beam Peak State ------------ > --- POWER ------------ Angular Momentum Engine Micro Fission Core > --- PROPULSION ------- Cooled Aerolev Unit Cooled Aerolev Unit Cooled Aerolev Unit > --- UTILITY ---------- Power Amplifier Energy Filter Point Defense System Hacking Suite > --- WEAPON ----------- Tesla Rifle Advanced Plasma Cannon Heavy Flak Cannon > --- INVENTORY -------- Weight Redist. System Triangulator Advanced ECM Suite Point Defense System Long-range Tractor Beam [Rating: 66] Favorites ----------- Power Light Nuclear Core Engine Light Ion Engine Power Core Light Nuclear Core Propulsion Compact Wheel Treads Light Treads Leg Aluminum Leg Wheel Compact Wheel Hover Unit Cooled Aerolev Unit Utility Small Storage Unit Device Improved Heat Sink Storage Small Storage Unit Processor Terrain Scan Processor Hackware Hacking Suite Protection Improved Light Armor Plating Weapon Small Laser Energy Gun Small Laser Energy Cannon Advanced Plasma Cannon Ballistic Gun Heavy Assault Rifle Ballistic Cannon Heavy Flak Cannon Launcher Rocket Launcher Build | -11 -10 -9 -9 -8 -7 -7 -7 -6 -6 -6 -5 ------- Run | Yrd Mat Mat Min Mat Fac Was Fac Fac Low Low Fac Slots Evolved 10 | . . 2 . 2 2 . . 2 . . 2 Power 1 | . . . . 1 . . . . . . . Propulsion 3 | . . 1 . . . . . 1 . . 1 Utility 5 | . . 1 . 1 1 . . 1 . . 1 Weapon 1 | . . . . . 1 . . . . . . Parts Attached 61 | 10 1 5 4 4 4 . 6 11 1 . 15 Power 11 | 1 . 1 2 1 1 . . 3 . . 2 Engine 7 | 1 . 1 1 1 . . . 2 . . 1 Core 4 | . . . 1 . 1 . . 1 . . 1 Reactor . | . . . . . . . . . . . . Propulsion 14 | 6 . 1 . 1 . . 2 1 . . 3 Treads 3 | 2 . . . . . . . 1 . . . Leg 2 | 2 . . . . . . . . . . . Wheel 5 | 2 . 1 . 1 . . 1 . . . . Hover 4 | . . . . . . . 1 . . . 3 Flight . | . . . . . . . . . . . . Utility 21 | 1 1 1 2 2 1 . 2 5 1 . 5 Device 12 | . 1 . 1 1 1 . 2 3 . . 3 Storage 2 | 1 . . 1 . . . . . . . . Processor 1 | . . 1 . . . . . . . . . Hackware 1 | . . . . . . . . . . . 1 Protection 5 | . . . . 1 . . . 2 1 . 1 Artifact . | . . . . . . . . . . . . Weapon 15 | 2 . 2 . . 2 . 2 2 . . 5 Energy Gun 6 | 2 . 1 . . . . . 1 . . 2 Energy Cannon 1 | . . . . . . . . . . . 1 Ballistic Gun 4 | . . 1 . . 1 . 1 1 . . . Ballistic Cannon 3 | . . . . . 1 . . . . . 2 Launcher 1 | . . . . . . . 1 . . . . Special Weapon . | . . . . . . . . . . . . Impact Weapon . | . . . . . . . . . . . . Slashing Weapon . | . . . . . . . . . . . . Piercing Weapon . | . . . . . . . . . . . . Special Melee Weapon . | . . . . . . . . . . . . Unidentified Prototypes 2 | . . . . . . . . 1 . . 1 Parts Lost 32 | . . 1 1 4 1 5 2 11 . . 7 Power 6 | . . 1 . 1 1 . . 3 . . . Propulsion 8 | . . . 1 2 . 1 1 1 . . 2 Utility 10 | . . . . . . 2 . 5 . . 3 Weapon 8 | . . . . 1 . 2 1 2 . . 2 Highest Loss Streak 7 | . . 1 1 4 1 4 2 7 . . 3 To Critical Strikes 1 | . . . . . . . . . . . 1 Average Backups 4 | 3 6 7 7 6 6 5 4 2 1 1 4 Power . | . 1 1 1 . . . . . . . . Propulsion 1 | 2 4 4 3 1 1 1 1 . . . . Utility 2 | . . . 1 2 3 3 3 1 1 1 4 Weapon . | . 1 1 2 2 1 1 . . . . . Tool/Special . | . . . . . . . . . . . . Unused Backups 6 | . . 1 . . . . . . . . 5 Power 1 | . . 1 . . . . . . . . . Propulsion . | . . . . . . . . . . . . Utility 5 | . . . . . . . . . . . 5 Weapon . | . . . . . . . . . . . . Tool/Special . | . . . . . . . . . . . . Average Slot Usage (%) 47 | . 97 91 88 87 61 33 11 47 . . 17 Engine 4 | . 14 10 9 9 5 . . 3 . . . Core 2 | . . . 2 7 . 3 . 3 . . 2 Wheel 8 | . 28 27 22 18 7 3 5 2 . . . Device 8 | . 11 11 11 13 9 9 . 14 . . 4 Storage 3 | . 14 11 11 9 7 3 . . . . . Processor 2 | . . 8 11 9 . . . . . . . Protection 2 | . . . . 4 7 3 . 6 . . 2 Energy Gun 5 | . 28 16 11 9 7 3 . 3 . . 2 Ballistic Gun 3 | . . 5 11 8 6 3 . 4 . . . Peak Build Rating 66 | 6 7 12 13 21 22 22 16 44 9 . 66 Average Rating 15 | 4 6 9 10 18 17 10 8 28 . . 16 On Entrance 7 | . 6 7 12 13 14 22 . 11 1 . . Naked Turns 333 | . . . . . . 29 34 66 129 6 69 Heaviest Build 51 | 11 12 17 51 28 31 31 6 35 . . 46 Greatest Support 48 | 40 32 42 42 38 12 12 28 48 3 3 27 Greatest Overweight (x) 14 | 3 . . 1 2 2 6 . 3 . . 14 Average Overweight (x) . | . . . . . 2 . . . . . 1 Largest Inventory Capacity 20 | 8 8 8 20 8 8 8 5 5 5 5 5 Average Capacity 6 | 7 8 8 8 8 8 6 5 5 5 5 5 Most Carried 8 | 6 6 8 8 8 8 5 5 5 5 1 5 Average Carried 5 | 3 6 7 7 6 5 5 4 3 2 1 4 Final Capacity 8 | 8 8 8 8 8 8 5 5 5 5 5 5 Final Carried 8 | 6 6 8 5 8 5 5 5 3 1 1 5 Class Distribution -------------------- 65% | Mutant 28% | Scavenger-Mutant 4% | Tank Dominant Class ---------------- Mutant | -10/Materials Mutant | -9/Materials Scavenger-Mutant | -9/Mines Scavenger-Mutant | -8/Materials Tank | -7/Factory Mutant | -7/Waste Mutant | -7/Factory Mutant | -6/Factory Mutant | -6/Lower Caves Mutant | -6/Lower Caves Mutant | -5/Factory Resources | -11 -10 -9 -9 -8 -7 -7 -7 -6 -6 -6 -5 ----------- Run | Yrd Mat Mat Min Mat Fac Was Fac Fac Low Low Fac Matter Collected 1129 | 178 . 198 79 64 22 . 16 61 121 . 390 Remotely . | . . . . . . . . . . . . Salvage Created 838 | . . 314 14 51 79 . 66 61 . . 253 Parts 48 | . . 17 2 1 8 . 2 6 . . 12 Haulers Intercepted . | . . . . . . . . . . . . Recyclers Shooed 3 | . . 1 . . . . . . . . 2 Parts Field Recycled . | . . . . . . . . . . . . Retrieved Matter . | . . . . . . . . . . . . Parts Self-Destructed . | . . . . . . . . . . . . Prevented . | . . . . . . . . . . . . Kills | -11 -10 -9 -9 -8 -7 -7 -7 -6 -6 -6 -5 ------- Run | Yrd Mat Mat Min Mat Fac Was Fac Fac Low Low Fac Combat Hostiles Destroyed 21 | . . 5 1 1 4 . 3 1 . . 6 Guns 10 | . . 5 1 1 1 . . 1 . . 1 Cannons 8 | . . . . . 3 . . . . . 5 AOE 3 | . . . . . . . 3 . . . . Classes Destroyed 7 | . . 4 1 . . . . . . . 2 Tunneler 1 | . . 1 . . . . . . . . . Watcher 1 | . . 1 . . . . . . . . . Swarmer 6 | . . . 1 . 4 . . . . . 1 Grunt 8 | . . 3 . . . . 3 . . . 2 Brawler 1 | . . . . . . . . . . . 1 Sentry 4 | . . 2 . 1 . . . 1 . . . Programmer 2 | . . . . . . . . . . . 2 Best Kill Streak 4 | . . 3 1 1 4 . 3 1 . . 3 Combat Bots Only 4 | . . 3 1 1 4 . 3 1 . . 3 Max Kills in Single Turn 2 | . . 2 1 1 1 . 1 1 . . 1 Gunslinging 1 | . . 1 . . . . . . . . . Exploded 1 | . . . . . . . 1 . . . . Melee . | . . . . . . . . . . . . Uniques/NPCs Destroyed . | . . . . . . . . . . . . Combat | -11 -10 -9 -9 -8 -7 -7 -7 -6 -6 -6 -5 -------- Run | Yrd Mat Mat Min Mat Fac Was Fac Fac Low Low Fac Hostile Shots Fired 529 | . . 48 13 73 16 4 37 219 . . 119 Missed 190 | . . 15 4 21 10 . 11 81 . . 48 Hits 339 | . . 33 9 52 6 4 26 138 . . 71 Melee 11 | . . . . . . 4 . 3 . . 4 Projectile 328 | . . 33 9 52 6 . 26 135 . . 67 AOE 1 | . . . . . . . . . . . 1 Critical Strikes 16 | . . 1 . 1 . 1 2 6 . . 5 Damage Taken 5206 | . 1 344 120 638 66 158 471 1680 . . 1728 Core 2083 | . . 118 53 108 12 115 94 542 . . 1041 Absorbed by Shields 44 | . . . . . . . . 44 . . . Ignored by Resistances 1364 | . . 102 37 182 20 41 130 491 . . 361 Core Remaining (%) 73 | 100 100 . 57 80 . . 68 . . 36 . Volleys Fired 104 | . . 21 8 23 5 . 6 19 . . 22 Largest 3 | . . 2 2 2 3 . 1 1 . . 3 Hottest 207 | . . 80 63 63 100 . 33 28 . . 207 Shots Fired 177 | . . 42 16 40 15 . 7 19 . . 38 Gun 141 | . . 42 16 40 10 . 2 19 . . 12 Cannon 31 | . . . . . 5 . . . . . 26 Launcher 5 | . . . . . . . 5 . . . . Special . | . . . . . . . . . . . . Kinetic 85 | . . 11 8 17 10 . 2 19 . . 18 Thermal 65 | . . 21 8 23 5 . . . . . 8 Explosive 5 | . . . . . . . 5 . . . . Electromagnetic 22 | . . 10 . . . . . . . . 12 Robot Hit Streak 19 | . . 19 9 11 3 . 8 12 . . 13 Robot Miss Streak 4 | . . 1 1 1 4 . . 3 . . 4 Penetration Max . | . . . . . . . . . . . . Secondary Targets 3 | . . 2 1 . . . . . . . . Max Gunslinging Chain 1 | . . 1 1 . . . . . . . . Shots Hit Robots 136 | . . 38 12 34 7 . 6 14 . . 25 Core Hits 75 | . . 13 4 7 8 . 7 5 . . 31 Critical Kills . | . . . . . . . . . . . . Critical Parts Destroyed . | . . . . . . . . . . . . Critical Strikes 1 | . . . . . 1 . . . . . . Blast 1 | . . . . . 1 . . . . . . Melee Attacks . | . . . . . . . . . . . . Impact . | . . . . . . . . . . . . Slashing . | . . . . . . . . . . . . Piercing . | . . . . . . . . . . . . Sneak Attacks . | . . . . . . . . . . . . Combat Hostiles . | . . . . . . . . . . . . Follow-up Attacks . | . . . . . . . . . . . . Damage Inflicted 2763 | . 3 494 182 307 143 . 385 344 . . 905 Guns 1560 | . . 486 182 286 56 . 12 334 . . 204 Cannons 768 | . . . . . 87 . . . . . 681 Explosions 364 | . . . . . . . 364 . . . . Melee . | . . . . . . . . . . . . Ramming 71 | . 3 8 . 21 . . 9 10 . . 20 Kinetic 1418 | . . 165 137 134 121 . 12 334 . . 515 Thermal 591 | . . 206 45 152 22 . . . . . 166 Explosive 364 | . . . . . . . 364 . . . . Electromagnetic 319 | . . 115 . . . . . . . . 204 Impact . | . . . . . . . . . . . . Slashing . | . . . . . . . . . . . . Piercing . | . . . . . . . . . . . . Highest Corruption 14 | . . . . . . 14 14 7 7 7 13 Average Corruption 7 | . . . . . . 6 14 2 7 7 8 Corruption Purged . | . . . . . . . . . . . . Corruption Blocked . | . . . . . . . . . . . . Effects 41 | . . . . . . 5 15 1 3 1 16 Message Errors 12 | . . . . . . 1 6 . 2 . 3 Matter Fused 10 | . . . . . . 1 5 . 1 . 3 Heat Flow Errors 2 | . . . . . . . 1 . . . 1 Energy Discharges 10 | . . . . . . 2 . 1 . . 7 Parts Fused 1 | . . . . . . . . . . . 1 Data Loss (minor) 2 | . . . . . . . 1 . . 1 . Data Loss (major) 1 | . . . . . . . 1 . . . . Misfires 1 | . . . . . . . 1 . . . . Alerts 2 | . . . . . . 1 . . . . 1 Overload Shots . | . . . . . . . . . . . . Overflow Damage 6 | . . . . . . . 6 . . . . Projectiles . | . . . . . . . . . . . . Explosions 6 | . . . . . . . 6 . . . . Melee . | . . . . . . . . . . . . Knockbacks 8 | . . . . . . . . . . . 8 Impact . | . . . . . . . . . . . . Kinetic 7 | . . . . . . . . . . . 7 Secondary 1 | . . . . . . . . . . . 1 Self-Inflicted Damage 155 | . 1 3 . 9 . . 127 5 . . 10 Shots 5 | . . . . . . . 5 . . . . Rammed 17 | . 1 3 . 4 . . 2 1 1 . 5 Targets Rammed 17 | . 1 3 . 4 . . 2 1 1 . 5 Kicked . | . . . . . . . . . . . . Crushed . | . . . . . . . . . . . . Highest Temperature 964 | . . 22 3 19 . . 211 3 . . 964 Average Temperature 362 | . . 8 3 5 . . 86 3 . . 536 Received Heat Transfer 1635 | . . 219 63 261 . . 270 522 . . 300 Effects 35 | . . . . . . . . . . . 35 Shutdowns 7 | . . . . . . . . . . . 7 Energy Bleed 3 | . . . . . . . . . . . 3 Matter Decay 2 | . . . . . . . . . . . 2 Short Circuit 5 | . . . . . . . . . . . 5 Damage (minor) 2 | . . . . . . . . . . . 2 Damage (major) 13 | . . . . . . . . . . . 13 Damage (core) 3 | . . . . . . . . . . . 3 Siege Activations . | . . . . . . . . . . . . Martial Activations . | . . . . . . . . . . . . Shielding Activations . | . . . . . . . . . . . . Robots Disrupted . | . . . . . . . . . . . . Combat Hostiles . | . . . . . . . . . . . . Robots Corrupted . | . . . . . . . . . . . . Combat Hostiles . | . . . . . . . . . . . . Parts Fried 1 | . . 1 . . . . . . . . . Impact Corruptions . | . . . . . . . . . . . . Robots Melted . | . . . . . . . . . . . . Combat Hostiles . | . . . . . . . . . . . . Parts Melted . | . . . . . . . . . . . . Heat Transferred 1225 | . . 475 100 350 50 . . . . . 250 Parts Sabotaged . | . . . . . . . . . . . . Parts Stolen . | . . . . . . . . . . . . Parts Stripped . | . . . . . . . . . . . . Power Chain Reactions . | . . . . . . . . . . . . Alert | -11 -10 -9 -9 -8 -7 -7 -7 -6 -6 -6 -5 ------- Run | Yrd Mat Mat Min Mat Fac Was Fac Fac Low Low Fac Maximum Alert Level . | . . . . . . . . . . . . Low Security (%) 100 | 100 100 100 100 100 100 100 100 100 . . 100 Level 1 . | . . . . . . . . . . . . Level 2 . | . . . . . . . . . . . . Level 3 . | . . . . . . . . . . . . Level 4 . | . . . . . . . . . . . . Level 5 . | . . . . . . . . . . . . High Security . | . . . . . . . . . . . . Max Security . | . . . . . . . . . . . . Peak Influence 155 | . . 77 61 112 71 20 95 155 . . 70 Initial 20 | . . . 18 10 . 20 . 3 . . 2 Average 16 | . . 27 16 36 18 4 30 13 . . 6 Influence Increases 944 | . . 142 101 146 91 . 133 195 . . 136 Destroy 0b10 Robot/C 560 | . . 100 80 100 80 . 60 20 . . 120 Destroy 0b10 Robot/NC 10 | . . 10 . . . . . . . . . Destroy Leader 122 | . . 32 20 30 10 . 10 10 . . 10 Allied During Kill 4 | . . . 1 3 . . . . . . . Successful Hack 4 | . . . . 4 . . . . . . . Disable Machine 9 | . . . . 9 . . . . . . . Destroy Structure 25 | . . . . . 1 . 18 . . . 6 Lose Combat Pursuer 210 | . . . . . . . 45 165 . . . Influence Decreases 928 | . . 85 127 177 20 71 125 78 117 3 125 Entered New Map 179 | . . . 39 21 . 51 . 5 57 3 3 Time Decay 639 | . . 75 78 116 10 20 125 63 60 . 92 Lost Part 90 | . . 10 10 20 10 . . 10 . . 30 Lost Ally 20 | . . . . 20 . . . . . . . Squads Dispatched 5 | . . . . . . . 1 2 . . 2 Investigation . | . . . . . . . . . . . . Extermination 3 | . . . . . . . . 1 . . 2 Reinforcement 2 | . . . . . . . 1 1 . . . Assault . | . . . . . . . . . . . . Garrison . | . . . . . . . . . . . . Intercept . | . . . . . . . . . . . . Searches Triggered . | . . . . . . . . . . . . Construction Impeded . | . . . . . . . . . . . . Haulers Reinforced . | . . . . . . . . . . . . Active Scanning Responses . | . . . . . . . . . . . . Cargo Convoy Interrupts . | . . . . . . . . . . . . Stealth | -11 -10 -9 -9 -8 -7 -7 -7 -6 -6 -6 -5 --------- Run | Yrd Mat Mat Min Mat Fac Was Fac Fac Low Low Fac Distress Signals 7 | . . 3 . 2 . . . 1 . . 1 Communications Jammed . | . . . . . . . . . . . . Distress Signals . | . . . . . . . . . . . . Times Spotted 83 | . . 9 6 10 4 6 8 29 . . 11 Peak Tracking Total 14 | . . 4 3 3 4 6 4 14 . . 4 Tactical Retreats 6 | . . . . . . . 1 5 . . . Traps | -11 -10 -9 -9 -8 -7 -7 -7 -6 -6 -6 -5 ------- Run | Yrd Mat Mat Min Mat Fac Was Fac Fac Low Low Fac Traps Triggered 3 | . . . . . 1 . . 1 . . 1 Indirectly . | . . . . . . . . . . . . Trap Hack Attempts . | . . . . . . . . . . . . Triggered . | . . . . . . . . . . . . Disarmed . | . . . . . . . . . . . . Reprogrammed . | . . . . . . . . . . . . Reused . | . . . . . . . . . . . . Traps Extracted . | . . . . . . . . . . . . Installed . | . . . . . . . . . . . . Triggered . | . . . . . . . . . . . . Machines | -11 -10 -9 -9 -8 -7 -7 -7 -6 -6 -6 -5 ---------- Run | Yrd Mat Mat Min Mat Fac Was Fac Fac Low Low Fac Machines Disabled 1 | . . . . 1 . . . . . . . Max in Single Turn . | . . . . . . . . . . . . Machines Repaired . | . . . . . . . . . . . . Machines Dismantled . | . . . . . . . . . . . . Machines Sabotaged . | . . . . . . . . . . . . Overloaded Fab Kills . | . . . . . . . . . . . . Hacking | -11 -10 -9 -9 -8 -7 -7 -7 -6 -6 -6 -5 --------- Run | Yrd Mat Mat Min Mat Fac Was Fac Fac Low Low Fac Machines Accessed 5 | . . 1 1 2 . . . 1 . . . Terminals 3 | . . 1 . 2 . . . . . . . Fabricators 1 | . . . . . . . . 1 . . . Repair Stations . | . . . . . . . . . . . . Recycling Units . | . . . . . . . . . . . . Scanalyzers . | . . . . . . . . . . . . Garrison Access . | . . . . . . . . . . . . Total Hacks 8 | . . 2 1 3 . . . 2 . . . Successful 6 | . . 1 1 3 . . . 1 . . . Failed 2 | . . 1 . . . . . 1 . . . Catastrophic . | . . . . . . . . . . . . Database Lockouts . | . . . . . . . . . . . . Manual . | . . . . . . . . . . . . Terminals 5 | . . 2 . 3 . . . . . . . Fabricators 2 | . . . . . . . . 2 . . . Repair Stations . | . . . . . . . . . . . . Recycling Units . | . . . . . . . . . . . . Scanalyzers . | . . . . . . . . . . . . Garrison Access . | . . . . . . . . . . . . Terminal Hacks 5 | . . 1 1 3 . . . . . . . Open Door 1 | . . . 1 . . . . . . . . Level Access Points 1 | . . 1 . . . . . . . . . Reinforcement Status 1 | . . . . 1 . . . . . . . Zone Layout 2 | . . . . 2 . . . . . . . Fabricator Hacks 1 | . . . . . . . . 1 . . . Network Status 1 | . . . . . . . . 1 . . . Repair Station Hacks . | . . . . . . . . . . . . Recycling Unit Hacks . | . . . . . . . . . . . . Scanalyzer . | . . . . . . . . . . . . Garrison Access Hacks . | . . . . . . . . . . . . Unauthorized Hacks . | . . . . . . . . . . . . Terminals . | . . . . . . . . . . . . Fabricators . | . . . . . . . . . . . . Repair Stations . | . . . . . . . . . . . . Recycling Units . | . . . . . . . . . . . . Scanalyzers . | . . . . . . . . . . . . Garrison Access . | . . . . . . . . . . . . Data Cores Recovered . | . . . . . . . . . . . . Used . | . . . . . . . . . . . . Hacking Detections 1 | . . . . . . . . 1 . . . Full Trace Events . | . . . . . . . . . . . . Feedback Events . | . . . . . . . . . . . . Feedback Blocked . | . . . . . . . . . . . . Robot Schematics Acquired . | . . . . . . . . . . . . Robots Built . | . . . . . . . . . . . . Authchips . | . . . . . . . . . . . . Time . | . . . . . . . . . . . . Total Robot Build Rating . | . . . . . . . . . . . . Part Schematics Acquired . | . . . . . . . . . . . . Parts Built . | . . . . . . . . . . . . Authchips . | . . . . . . . . . . . . Time . | . . . . . . . . . . . . Total Part Build Rating . | . . . . . . . . . . . . Parts Repaired . | . . . . . . . . . . . . Time . | . . . . . . . . . . . . Parts Recycled . | . . . . . . . . . . . . Recycled Matter . | . . . . . . . . . . . . Retrieved Matter . | . . . . . . . . . . . . Retrieved Components . | . . . . . . . . . . . . Parts Scanalyzed . | . . . . . . . . . . . . Part Schematics Acquired . | . . . . . . . . . . . . Parts Damaged . | . . . . . . . . . . . . Bothacking | -11 -10 -9 -9 -8 -7 -7 -7 -6 -6 -6 -5 ------------ Run | Yrd Mat Mat Min Mat Fac Was Fac Fac Low Low Fac Used RIF Installer . | . . . . . . . . . . . . Robots Hacked . | . . . . . . . . . . . . Non-combat . | . . . . . . . . . . . . Combat . | . . . . . . . . . . . . Robot Hacks Applied . | . . . . . . . . . . . . Relay Couplers Released . | . . . . . . . . . . . . Fabnet Peak Effective % . | . . . . . . . . . . . . Robots Rewired . | . . . . . . . . . . . . Allies Hacked . | . . . . . . . . . . . . Hacks Repelled . | . . . . . . . . . . . . Allies | -11 -10 -9 -9 -8 -7 -7 -7 -6 -6 -6 -5 -------- Run | Yrd Mat Mat Min Mat Fac Was Fac Fac Low Low Fac Total Allies 1 | . . . 1 . . . . . . . . Largest Group 1 | . . . 1 1 . . . . . . . Highest-Rated Group 31 | . . . 31 31 . . . . . . . Highest-Rated Ally 31 | . . . 31 31 . . . . . . . Total Orders . | . . . . . . . . . . . . Ally Attacks 27 | . . . 5 22 . . . . . . . Total Damage 392 | . . . 85 307 . . . . . . . Kills 7 | . . . 3 4 . . . . . . . Allies Corrupted . | . . . . . . . . . . . . Allies Melted . | . . . . . . . . . . . . Intel | -11 -10 -9 -9 -8 -7 -7 -7 -6 -6 -6 -5 ------- Run | Yrd Mat Mat Min Mat Fac Was Fac Fac Low Low Fac Active Infowar (turns) 337 | . . . . . . . 4 333 . . . ECM 337 | . . . . . . . 4 333 . . . Robot Analysis Total . | . . . . . . . . . . . . Derelict Logs Recovered 1 | . . . . . . . . . 1 . . Drone Launches . | . . . . . . . . . . . . Drone Recoveries . | . . . . . . . . . . . . Exploration | -11 -10 -9 -9 -8 -7 -7 -7 -6 -6 -6 -5 ------------- Run | Yrd Mat Mat Min Mat Fac Was Fac Fac Low Low Fac Turns Passed 3324 | 82 107 241 324 351 78 128 336 653 130 6 888 Spaces Moved 3043 | 53 105 172 322 292 48 176 373 527 251 11 713 Core 1211 | 12 . . . . . 133 73 125 251 11 606 Treads 151 | 9 . . . . . . . 142 . . . Legs 2 | 2 . . . . . . . . . . . Wheels 1515 | 30 105 172 322 292 48 43 243 260 . . . Hover 164 | . . . . . . . 57 . . . 107 Flight . | . . . . . . . . . . . . Fastest Speed 42 | 50 100 93 90 90 120 50 50 50 50 50 42 Average Speed 95 | 120 100 96 90 94 120 72 84 111 50 50 112 Slowest Speed 750 | 200 100 100 105 120 120 350 100 240 50 50 750 Overloaded Moves . | . . . . . . . . . . . . Propulsion Burnouts . | . . . . . . . . . . . . Robots Hopped . | . . . . . . . . . . . . Potential Cave-ins . | . . . . . . . . . . . . Cave-ins Triggered . | . . . . . . . . . . . . Exploration Rate (%) 22 | 3 24 15 43 18 2 82 7 19 45 4 10 Regions Visited 11 Branch Regions 3 Pre-discovered Areas 1 | . . . 1 . . . . . . . . Known Exits Taken 1 | . . . 1 . . . . . . . . Unknown Exits Taken 8 | 1 1 1 . 1 . . 1 1 1 1 . Scrap Searched 5 | . . . 2 . . . . . 3 . . Spaces Dug . | . . . . . . . . . . . . Terrain Destroyed 23 | . . . . . 1 . 19 . . . 3 Melee . | . . . . . . . . . . . . Projectile 4 | . . . . . 1 . . . . . 3 AOE 19 | . . . . . . . 19 . . . . Terrain Rammed . | . . . . . . . . . . . . Walls Destroyed . | . . . . . . . . . . . . Machines Disabled . | . . . . . . . . . . . . Actions | -11 -10 -9 -9 -8 -7 -7 -7 -6 -6 -6 -5 --------- Run | Yrd Mat Mat Min Mat Fac Was Fac Fac Low Low Fac Total 3264 | 68 106 205 341 327 58 175 388 571 255 10 760 Wait . | . . . . . . . . . . . . Move 3033 | 52 104 171 321 291 48 175 372 526 250 10 713 Hop . | . . . . . . . . . . . . Pick Up 16 | 2 . 3 1 4 . . . 2 . . 4 Fast Attach 49 | 10 1 3 2 3 1 . 5 7 1 . 16 Attach 12 | . . 1 . 1 3 . 1 6 . . . Detach 8 | 4 . . . . 1 . 1 1 1 . . Swap 4 | . . 1 3 . . . . . . . . Drop 12 | . . 2 6 1 . . 1 . 2 . . Fire 104 | . . 21 8 23 5 . 6 19 . . 22 Melee . | . . . . . . . . . . . . Ram 17 | . 1 3 . 4 . . 2 1 1 . 5 Kick . | . . . . . . . . . . . . Crush . | . . . . . . . . . . . . Escape Stasis 9 | . . . . . . . . 9 . . . Rewire . | . . . . . . . . . . . . Trap . | . . . . . . . . . . . . Miscellaneous . | . . . . . . . . . . . . Route ------- -11/Scrapyard -10/Materials -9/Materials (discovered 4 exits: Mat x3 / *Min) -9/Mines -8/Materials -7/Factory -7/Waste -7/Factory -6/Factory -6/Lower Caves -6/Lower Caves -5/Factory History --------- Turn | Location | Event 11 | -11/Scrapyard | Discovered new exit (range 16) 83 | -11/Scrapyard | Entered Materials 185 | -10/Materials | Discovered new exit (range 5) 190 | -10/Materials | Entered another Materials area 190 | -9/Materials | Evolved 2 slots: Propulsion x1, Utility x1 331 | -9/Materials | Build established: Mutant 367 | -9/Materials | Discovered new exit (range 16) 369 | -9/Materials | Identified exit to Materials 431 | -9/Materials | Entered Mines 438 | -9/Mines | Escorted by a lone wolf Derelict 458 | -9/Mines | Learned location of Storage (-8) 476 | -9/Mines | Found the Drone Emporium 696 | -9/Mines | Build established: Scavenger-Mutant 752 | -9/Mines | Discovered exit to Materials (range 3) 755 | -9/Mines | Entered Materials 755 | -8/Materials | Accompanied by 1 ally 755 | -8/Materials | Evolved 2 slots: Power x1, Utility x1 1094 | -8/Materials | Discovered new exit (range 12) 1101 | -8/Materials | Lost 4 parts (1p2n1w) 1106 | -8/Materials | Entered Factory 1106 | -7/Factory | Evolved 2 slots: Utility x1, Weapon x1 1184 | -7/Factory | Sucked down chute 1184 | -7/Factory | Entered Waste 1199 | -7/Waste | EMP discharged 1199 | -7/Waste | Spotted C-40 Crusher 1210 | -7/Waste | Spotted C-40 Crusher 1211 | -7/Waste | Spotted C-40 Crusher 1235 | -7/Waste | Crushed by Compactor (1 part destroyed, 1 dropped) 1236 | -7/Waste | Spotted C-40 Crusher 1238 | -7/Waste | Crushed by Compactor (1 part destroyed, 1 dropped) 1243 | -7/Waste | Spotted C-40 Crusher 1243 | -7/Waste | Spotted C-40 Crusher 1249 | -7/Waste | Crushed by Compactor (1 part destroyed, 2 dropped) 1280 | -7/Waste | Lost 4 parts (1n1u2w) 1283 | -7/Waste | Crushed by Compactor (1 part destroyed) 1299 | -7/Waste | EMP discharged 1299 | -7/Waste | System corruption reached 10% 1304 | -7/Waste | Discovered new exit (range 13) 1312 | -7/Waste | Entered Factory 1537 | -7/Factory | Build established: Mutant 1633 | -7/Factory | Discovered new exit (range 15) 1648 | -7/Factory | Entered another Factory area 1648 | -6/Factory | Evolved 2 slots: Propulsion x1, Utility x1 2116 | -6/Factory | Build established: Scavenger-Mutant 2210 | -6/Factory | Released all parts (3) 2241 | -6/Factory | Lost 7 parts (2p1n3u1w) 2289 | -6/Factory | Core integrity fell below 50% 2295 | -6/Factory | Discovered new exit (range 11) 2301 | -6/Factory | Entered Lower Caves 2302 | -6/Lower Caves | Encountered a Warlord checkpoint 2324 | -6/Lower Caves | Learned Factory terminal intel 2423 | -6/Lower Caves | Discovered new exit (range 16) 2431 | -6/Lower Caves | Entered another Lower Caves area 2431 | -6/Lower Caves | Discovered new exit (range 8) 2432 | -6/Lower Caves | Encountered a Warlord checkpoint 2437 | -6/Lower Caves | Entered Factory 2437 | -5/Factory | Evolved 2 slots: Propulsion x1, Utility x1 2438 | -5/Factory | Loaded intel: 26 terminal locations 2444 | -5/Factory | Build established: Mutant 2916 | -5/Factory | Lost 3 parts (1u2w) 3275 | -5/Factory | System corruption reached 10% 3287 | -5/Factory | Core integrity fell below 50% 3306 | -5/Factory | Core integrity fell below 20% 3311 | -5/Factory | Released all parts (9) 3325 | -5/Factory | Lost 3 parts (1n2u) 3325 | -5/Factory | Destroyed by exploding Fusion Modulator Last Messages --------------- 03309_ K-01 Serf collects debris. 03311_ Tesla Rifle broken. 03311_ Overheating: Short circuit. 03311_ Released Adv. Plasma Cannon. 03311_ Released Broken Cld. Aerolev Unit. 03311_ Released Broken Tesla Rifle. 03311_ Released Broken Hvy. Flak Cannon. 03311_ Released Broken Energy Filter. 03311_ Released Mic. Fission Core. 03311_ Released Broken Cld. Aerolev Unit. 03311_ Released Angular Momentum Engine. 03311_ Released Point Defense System. 03313_ K-01 Serf collects debris. 03315_ Overheating: Matter decay (-46). 03316_ K-01 Serf collects debris. 03319_ System corrupted: Energy discharge (-31). 03325_ Fusion Modulator explodes. 03325_ P-70 Sage destroyed. 03325_ K-01 Serf destroyed. [Achievement: Achiever] Map ----- +----------------------------------------------------+ | ???????????????????????? ?????# #?? | | ???????????##############+#+#############/######## | | ???????????# # | | ???????????# # ###### | | ???????????# # # | | ???????????# + # | | ???????????# """ """ # """ "" # | | ???????????# """ """ # """" """" # | | ???????????# """ "" # """" """" ####+# | | ???????????# " "" # " " """" """" | | ???????????# "" "" # p"T" """" """" | | ???????????# # """ """" """" | | ???????????# = # | | ???????????# # | | ???????????############## #################### | | ????????????????????????# #??????????????????? | | ????????????????????????# #??????????????????? | | ????????????????????????# #??????????????????? | | ????????????????????????# #??????????????????? | | ????????????????????????# #??????##########??? | | ????????????????????????#*! #??????# #??? | | ?????????????????????####[%! ##?????# """ #??? | | ?????????????????#####;;;=| ;####### "R #??? | | ?????????????????# # """ #??? | | ?????????????????# # #??? | | ?????????????????# // @ k + """ #??? | | ????????########## =/= """ # """ #??? | | ????????# # ! """ #! """ #??? | | ????????# """ # """ # #??? | | ????????# """ # ###+######### | | ????????# """ # """ | | ????????# # """ | | ????????# !!! # """ | | ????????# !!! # | | ????????# !!! # """ """ """ """ | | ????????# # """ """ """ """ ##########/## | | ????????####+##### """ """ """ """ #???# | | ????????# #???# | | ????????# """ """ """ """ #???# | | ????????# """ """ """ """ #???# | | ????????# """ """ """ """ #???# | | ????????# #???# ] | | ????????####+##### """ """ """ """ #???# | | ????????# # """ """ """ """ #???# | | ????????# """"" # """ """ """ """ #???# | | ????????# """"" # #???# | | ????????# """ + " " #???# | | ????????# # =! "Y" #???# | | ????????# ]# **! """ #???######### | | ????????# "" "" ##### *[]=! !###### #???????????? | +----------------------------------------------------+ Best States ------------- Heat Dissipation 67 Energy Generation 32 Energy Capacity 350 Matter Stores 300 Matter Capacity 300 Sight Range 16 Terrain Scan Density 85 ECM Strength 2 Power Amplification 20 Armor Coverage 300 Resistance: KI 20 Resistance: TH 20 Resistance: EX 20 Resistance: EM 20 Resistance: I 20 Resistance: S 20 Resistance: P 20 Point Defense Rating 80 Melee Speed Boost 20 Evasion (%) 56 Recoil Reduction 2 Energy Filtering 30 Offensive Hacking 20 Item Schematics ----------------- None Robot Schematics ------------------ None Fabricated ------------ Nothing Repaired ---------- Nothing Alien Tech Used ----------------- None Achievements -------------- Achiever Maybe Next Time I'll Detach My Launcher Challenges ------------ None Game ------ Seed ChipImprinterDeflector Manual? 0 Play Time 00:35:10 Cumulative 41.2 hours Start 2025.06.16 @ 21:46:59 End 2025.06.16 @ 22:22:23 Sessions 1 Manual Loads 0 Difficulty Adventurer Special Mode None Game No. 89 Rogue 0 Adventurer 28 Explorer 61 Win Type - Total 0 Types 0/0/0/0/0/0/0/0/0/0 Lore% 4 Gallery% 24 Achievement% 25 Wizard Run 0 Options --------- Layout 1 ASCII 0 Keyboard 1 Movement Arrows Keybinds 0 Fullscreen 1 Font 16/SmallcapsGlow Map View 55x38 Zoom Use 0% Tactical HUD 1 Map Filters NONE Filters NONE Steam 1 RUN: 993559d1-cfbd-4996-b760-765bd4d7f96c